[Event "Live Chess"]
[Site "Chess.com"]
[Date "2023.05.21"]
[Round "-"]
[White "Nazar_777"]
[Black "Chesscoach_Golichenko"]
[Result "0-1"]
[WhiteElo "1569"]
[BlackElo "2630"]
[TimeControl "300"]
[EndTime "6:27:16 PDT"]
[Termination "Chesscoach_Golichenko won by checkmate"]

1. e3 {[%clk 0:04:49.9]} 1... d5 {[%clk 0:04:57.3]} 2. h4 {[%clk 0:04:49.2]}
2... c5 {[%clk 0:04:55.8]} 3. a3 {[%clk 0:04:48.7]} 3... Nc6 {[%clk 0:04:54.6]}
4. c4 {[%clk 0:04:47.8]} 4... d4 {[%clk 0:04:52.2]} 5. Nf3 {[%clk 0:04:46.4]}
5... e5 {[%clk 0:04:51]} 6. b3 {[%clk 0:04:43.2]} 6... e4 {[%clk 0:04:49.6]} 7.
Ng1 {[%clk 0:04:40.4]} 7... d3 {[%clk 0:04:48]} 8. Nc3 {[%clk 0:04:39.2]} 8...
f5 {[%clk 0:04:46.6]} 9. Bb2 {[%clk 0:04:37.9]} 9... Nf6 {[%clk 0:04:44.9]} 10.
Nh3 {[%clk 0:04:35.3]} 10... Bd6 {[%clk 0:04:43.8]} 11. Qc1 {[%clk 0:04:32.8]}
11... O-O {[%clk 0:04:39.4]} 12. Nd5 {[%clk 0:04:30.4]} 12... Be5 {[%clk
0:04:35.1]} 13. Ng5 {[%clk 0:04:27.9]} 13... h6 {[%clk 0:04:28.7]} 14. Nh3
{[%clk 0:04:26.3]} 14... Nxd5 {[%clk 0:04:25.7]} 15. cxd5 {[%clk 0:04:23.7]}
15... Qxd5 {[%clk 0:04:25.6]} 16. g3 {[%clk 0:04:22.8]} 16... Qxb3 {[%clk
0:04:19.9]} 17. Rb1 {[%clk 0:04:18.5]} 17... Bxb2 {[%clk 0:04:12.2]} 18. Qxb2
{[%clk 0:04:14]} 18... Qxb2 {[%clk 0:04:09.7]} 19. Rxb2 {[%clk 0:04:12.6]} 19...
b6 {[%clk 0:04:08.6]} 20. Bg2 {[%clk 0:04:10.9]} 20... Ne5 {[%clk 0:04:05.4]}
21. Nf4 {[%clk 0:04:05.3]} 21... Rb8 {[%clk 0:03:56]} 22. h5 {[%clk 0:04:03.9]}
22... b5 {[%clk 0:03:53]} 23. Ng6 {[%clk 0:04:01.3]} 23... Nxg6 {[%clk
0:03:50.2]} 24. hxg6 {[%clk 0:04:00.3]} 24... Be6 {[%clk 0:03:48.7]} 25. f3
{[%clk 0:03:58.3]} 25... Bd5 {[%clk 0:03:46.8]} 26. f4 {[%clk 0:03:56.3]} 26...
a5 {[%clk 0:03:44.1]} 27. Kf2 {[%clk 0:03:54.8]} 27... b4 {[%clk 0:03:42]} 28.
Rhb1 {[%clk 0:03:48.6]} 28... Rb6 {[%clk 0:03:37.1]} 29. axb4 {[%clk 0:03:46.4]}
29... axb4 {[%clk 0:03:34.7]} 30. Bh3 {[%clk 0:03:44.7]} 30... Rxg6 {[%clk
0:03:31.9]} 31. Kg2 {[%clk 0:03:42.3]} 31... Rb6 {[%clk 0:03:29.6]} 32. g4
{[%clk 0:03:39.8]} 32... fxg4 {[%clk 0:03:27.3]} 33. Bxg4 {[%clk 0:03:38.8]}
33... Rfb8 {[%clk 0:03:26.9]} 34. Kg3 {[%clk 0:03:37]} 34... c4 {[%clk 0:03:26]}
35. Bd7 {[%clk 0:03:04.9]} 35... Kf7 {[%clk 0:03:22]} 36. f5 {[%clk 0:03:03.1]}
36... Ke7 {[%clk 0:03:20.4]} 37. Be6 {[%clk 0:02:56.6]} 37... Bxe6 {[%clk
0:03:17.7]} 38. f6+ {[%clk 0:02:55.6]} 38... gxf6 {[%clk 0:03:15.2]} 39. Kf4
{[%clk 0:02:54.5]} 39... Bd5 {[%clk 0:03:13.8]} 40. Kf5 {[%clk 0:02:47.3]} 40...
c3 {[%clk 0:03:07.8]} 41. dxc3 {[%clk 0:02:45.7]} 41... bxc3 {[%clk 0:03:07.7]}
42. Rxb6 {[%clk 0:02:43.8]} 42... Rxb6 {[%clk 0:03:07.6]} 43. Rxb6 {[%clk
0:02:42.5]} 43... c2 {[%clk 0:03:05.9]} 44. Rb7+ {[%clk 0:02:37.8]} 44... Bxb7
{[%clk 0:03:04.3]} 45. Kf4 {[%clk 0:02:35.3]} 45... c1=Q {[%clk 0:03:01.4]} 46.
Kf5 {[%clk 0:02:31.3]} 46... Qxe3 {[%clk 0:02:59.8]} 47. Kg6 {[%clk 0:02:30.3]}
47... Qg5+ {[%clk 0:02:59.3]} 48. Kh7 {[%clk 0:02:29.3]} 48... Bd5 {[%clk
0:02:58.9]} 49. Kh8 {[%clk 0:02:27.2]} 49... Qg8# {[%clk 0:02:58.8]} 0-1

[Event "Live Chess"]
[Site "Chess.com"]
[Date "2023.05.21"]
[Round "-"]
[White "bonantagulo"]
[Black "Cimon"]
[Result "1-0"]
[WhiteElo "2097"]
[BlackElo "1845"]
[TimeControl "300"]
[EndTime "6:27:19 PDT"]
[Termination "bonantagulo won on time"]

1. d4 {[%clk 0:04:56.6]} 1... Nf6 {[%clk 0:04:58.4]} 2. c4 {[%clk 0:04:54.9]}
2... g6 {[%clk 0:04:57.1]} 3. Nc3 {[%clk 0:04:53.7]} 3... Bg7 {[%clk 0:04:56.1]}
4. Nf3 {[%clk 0:04:53.1]} 4... d6 {[%clk 0:04:55]} 5. e4 {[%clk 0:04:52]} 5...
O-O {[%clk 0:04:53.4]} 6. Be2 {[%clk 0:04:51]} 6... e5 {[%clk 0:04:52.1]} 7. O-O
{[%clk 0:04:49.9]} 7... Nc6 {[%clk 0:04:50.8]} 8. d5 {[%clk 0:04:48.7]} 8... Ne7
{[%clk 0:04:49.6]} 9. b4 {[%clk 0:04:48.6]} 9... a5 {[%clk 0:04:46.1]} 10. Ba3
{[%clk 0:04:47.1]} 10... axb4 {[%clk 0:04:44.4]} 11. Bxb4 {[%clk 0:04:47]} 11...
Nd7 {[%clk 0:04:42]} 12. a4 {[%clk 0:04:36]} 12... h6 {[%clk 0:04:36]} 13. Nd2
{[%clk 0:04:23.1]} 13... f5 {[%clk 0:04:33.3]} 14. Bf3 {[%clk 0:04:03.1]} 14...
b6 {[%clk 0:04:26.4]} 15. a5 {[%clk 0:03:58.2]} 15... Nf6 {[%clk 0:04:12.9]} 16.
axb6 {[%clk 0:03:50.1]} 16... Rxa1 {[%clk 0:04:10.7]} 17. Qxa1 {[%clk 0:03:50]}
17... cxb6 {[%clk 0:04:09.7]} 18. Nb5 {[%clk 0:03:41.8]} 18... Ne8 {[%clk
0:04:04.2]} 19. Qa8 {[%clk 0:03:23.6]} 19... Nc7 {[%clk 0:03:37.8]} 20. Qb8
{[%clk 0:03:06.9]} 20... Nxb5 {[%clk 0:03:35.2]} 21. cxb5 {[%clk 0:03:06.8]}
21... Rf6 {[%clk 0:03:25.7]} 22. Rc1 {[%clk 0:02:52.3]} 22... Qd7 {[%clk
0:03:15.7]} 23. g3 {[%clk 0:02:35.9]} 23... f4 {[%clk 0:03:00.3]} 24. Rc7 {[%clk
0:02:19.6]} 24... Qe8 {[%clk 0:02:52.9]} 25. Rxe7 {[%clk 0:01:56.5]} 25... Qxe7
{[%clk 0:02:46.3]} 26. Qxc8+ {[%clk 0:01:55.4]} 26... Kh7 {[%clk 0:02:44.6]} 27.
Kg2 {[%clk 0:01:47.8]} 27... fxg3 {[%clk 0:02:43.2]} 28. hxg3 {[%clk 0:01:43]}
28... h5 {[%clk 0:02:36.6]} 29. Qc6 {[%clk 0:01:30.9]} 29... Qd8 {[%clk
0:02:33]} 30. Nc4 {[%clk 0:01:24.9]} 30... h4 {[%clk 0:02:20.4]} 31. Qxb6 {[%clk
0:01:09.9]} 31... h3+ {[%clk 0:02:14.8]} 32. Kxh3 {[%clk 0:00:57.3]} 32... Qc8+
{[%clk 0:02:01.2]} 33. Kg2 {[%clk 0:00:49.8]} 33... Qxc4 {[%clk 0:01:59.9]} 34.
Bd2 {[%clk 0:00:38]} 34... Qd3 {[%clk 0:01:54.3]} 35. Be3 {[%clk 0:00:37]} 35...
Bh6 {[%clk 0:00:58.1]} 36. Qc7+ {[%clk 0:00:32.7]} 36... Kg8 {[%clk 0:00:42.7]}
37. Qc8+ {[%clk 0:00:27.4]} 37... Rf8 {[%clk 0:00:41.5]} 38. Qe6+ {[%clk
0:00:25.3]} 38... Kh8 {[%clk 0:00:36.7]} 39. Qxd6 {[%clk 0:00:16]} 39... Qxb5
{[%clk 0:00:20]} 40. Bxh6 {[%clk 0:00:12.5]} 40... Rxf3 {[%clk 0:00:16.8]} 41.
Kxf3 {[%clk 0:00:11.3]} 41... Qd3+ {[%clk 0:00:15.4]} 42. Be3 {[%clk 0:00:10.4]}
42... Qd1+ {[%clk 0:00:13.6]} 43. Kg2 {[%clk 0:00:09.3]} 43... Qg4 {[%clk
0:00:11]} 44. Qf8+ {[%clk 0:00:07.9]} 44... Kh7 {[%clk 0:00:09.8]} 45. Qf7+
{[%clk 0:00:07.8]} 45... Kh8 {[%clk 0:00:08.7]} 46. d6 {[%clk 0:00:07.7]} 46...
Qxe4+ {[%clk 0:00:06.8]} 47. Kg1 {[%clk 0:00:06.6]} 47... Qb1+ {[%clk
0:00:05.1]} 48. Kh2 {[%clk 0:00:06.2]} 48... Qf5 {[%clk 0:00:02.2]} 49. Qxf5
{[%clk 0:00:04.9]} 49... gxf5 {[%clk 0:00:01.6]} 50. d7 {[%clk 0:00:04.8]} 50...
f4 {[%clk 0:00:01]} 51. d8=Q+ {[%clk 0:00:04.7]} 1-0

[Event "Live Chess"]
[Site "Chess.com"]
[Date "2023.05.21"]
[Round "-"]
[White "Ferrarifan27"]
[Black "matt1979"]
[Result "1-0"]
[WhiteElo "2068"]
[BlackElo "1521"]
[TimeControl "300"]
[EndTime "6:27:29 PDT"]
[Termination "Ferrarifan27 won by resignation"]

1. e4 {[%clk 0:04:58.9]} 1... d6 {[%clk 0:04:57.8]} 2. d4 {[%clk 0:04:57]} 2...
Nf6 {[%clk 0:04:56.5]} 3. Nc3 {[%clk 0:04:55.4]} 3... e5 {[%clk 0:04:55.4]} 4.
dxe5 {[%clk 0:04:54.2]} 4... dxe5 {[%clk 0:04:54.5]} 5. Qxd8+ {[%clk 0:04:53.8]}
5... Kxd8 {[%clk 0:04:54.4]} 6. Nf3 {[%clk 0:04:53.1]} 6... Nbd7 {[%clk
0:04:51.2]} 7. Bc4 {[%clk 0:04:51.5]} 7... Ke8 {[%clk 0:04:47.6]} 8. Ng5 {[%clk
0:04:50.3]} 8... Bb4 {[%clk 0:04:32.7]} 9. Bxf7+ {[%clk 0:04:29.3]} 9... Kf8
{[%clk 0:04:28.2]} 10. Bd5 {[%clk 0:04:21.7]} 10... Nxd5 {[%clk 0:04:17.2]} 11.
exd5 {[%clk 0:04:19.9]} 11... Nf6 {[%clk 0:04:10.7]} 12. Ne6+ {[%clk 0:04:16.1]}
12... Bxe6 {[%clk 0:04:05.7]} 13. dxe6 {[%clk 0:04:14.5]} 13... Bxc3+ {[%clk
0:04:04.6]} 14. bxc3 {[%clk 0:04:13.1]} 14... Ke7 {[%clk 0:04:03.9]} 15. O-O
{[%clk 0:04:10.9]} 15... Kxe6 {[%clk 0:04:02.8]} 16. Re1 {[%clk 0:04:09.7]}
16... Kd5 {[%clk 0:03:54.1]} 17. c4+ {[%clk 0:04:04.7]} 17... Kxc4 {[%clk
0:03:45.7]} 18. Rxe5 {[%clk 0:04:03.6]} 18... Rhe8 {[%clk 0:03:41.4]} 19. Rxe8
{[%clk 0:04:02.5]} 19... Rxe8 {[%clk 0:03:40]} 20. Be3 {[%clk 0:04:01.4]} 20...
b6 {[%clk 0:03:30.8]} 21. Rd1 {[%clk 0:03:50.5]} 21... Nd5 {[%clk 0:03:26.7]}
22. Rd4+ {[%clk 0:03:43]} 22... Kc3 {[%clk 0:03:06.8]} 23. Rxd5 {[%clk
0:03:40.3]} 23... Kxc2 {[%clk 0:03:04.5]} 24. Rd7 {[%clk 0:03:39.4]} 24... Kb2
{[%clk 0:02:55.9]} 25. Rxc7 {[%clk 0:03:37.4]} 25... Rd8 {[%clk 0:02:49.8]} 26.
Kf1 {[%clk 0:03:34.1]} 26... a5 {[%clk 0:02:47.1]} 27. Bxb6 {[%clk 0:03:30.3]}
27... Kxa2 {[%clk 0:02:43.2]} 28. Rc2+ {[%clk 0:03:27.1]} 28... Kb3 {[%clk
0:02:41.2]} 29. Bxd8 {[%clk 0:03:26.2]} 29... Kxc2 {[%clk 0:02:40]} 30. Bxa5
{[%clk 0:03:23.5]} 1-0

[Event "Live Chess"]
[Site "Chess.com"]
[Date "2023.05.21"]
[Round "-"]
[White "NatashaRegan"]
[Black "Ayursworld"]
[Result "1/2-1/2"]
[WhiteElo "1704"]
[BlackElo "1421"]
[TimeControl "300"]
[EndTime "6:27:36 PDT"]
[Termination "Game drawn - timeout vs insufficient material"]

1. e4 {[%clk 0:04:57.1]} 1... e5 {[%clk 0:04:56.1]} 2. Nc3 {[%clk 0:04:54.5]}
2... Nf6 {[%clk 0:04:54.2]} 3. Bc4 {[%clk 0:04:49.9]} 3... Bc5 {[%clk
0:04:52.6]} 4. Nf3 {[%clk 0:04:41.5]} 4... d6 {[%clk 0:04:51]} 5. O-O {[%clk
0:04:37]} 5... Nc6 {[%clk 0:04:49.3]} 6. h3 {[%clk 0:04:32.4]} 6... h6 {[%clk
0:04:46.1]} 7. d3 {[%clk 0:04:24.5]} 7... Nd4 {[%clk 0:04:43.8]} 8. Nxd4 {[%clk
0:04:15.8]} 8... Bxd4 {[%clk 0:04:41.4]} 9. Nb5 {[%clk 0:04:11]} 9... Bc5 {[%clk
0:04:34.7]} 10. c3 {[%clk 0:04:08.4]} 10... c6 {[%clk 0:04:33.6]} 11. Na3 {[%clk
0:04:02]} 11... b5 {[%clk 0:04:28.2]} 12. Bb3 {[%clk 0:03:53.2]} 12... O-O
{[%clk 0:04:26.2]} 13. Be3 {[%clk 0:03:49.6]} 13... Bxe3 {[%clk 0:04:20]} 14.
fxe3 {[%clk 0:03:48.2]} 14... a5 {[%clk 0:04:15.8]} 15. Qe2 {[%clk 0:03:43.7]}
15... a4 {[%clk 0:04:10.8]} 16. Bc2 {[%clk 0:03:41.1]} 16... Qb6 {[%clk
0:04:06.5]} 17. d4 {[%clk 0:03:37.9]} 17... exd4 {[%clk 0:03:57.8]} 18. exd4
{[%clk 0:03:36.3]} 18... d5 {[%clk 0:03:43.6]} 19. e5 {[%clk 0:03:33.2]} 19...
Nh7 {[%clk 0:03:42.1]} 20. Qd3 {[%clk 0:03:29.4]} 20... g6 {[%clk 0:03:35.6]}
21. Kh1 {[%clk 0:03:25.3]} 21... Bf5 {[%clk 0:03:33.3]} 22. Qd2 {[%clk
0:03:22.2]} 22... Bxc2 {[%clk 0:03:29.9]} 23. Nxc2 {[%clk 0:03:20.7]} 23... Kg7
{[%clk 0:03:28.4]} 24. Ne3 {[%clk 0:03:17]} 24... h5 {[%clk 0:03:26.7]} 25. Qd3
{[%clk 0:03:12.8]} 25... Ng5 {[%clk 0:03:19.9]} 26. Rae1 {[%clk 0:03:06.6]}
26... Ne4 {[%clk 0:03:16.4]} 27. Nd1 {[%clk 0:02:59.8]} 27... b4 {[%clk
0:03:11.6]} 28. Rxe4 {[%clk 0:02:54.3]} 28... dxe4 {[%clk 0:03:08.4]} 29. Qxe4
{[%clk 0:02:53.4]} 29... bxc3 {[%clk 0:03:07.1]} 30. bxc3 {[%clk 0:02:51.4]}
30... a3 {[%clk 0:03:00.6]} 31. Ne3 {[%clk 0:02:48]} 31... Qb2 {[%clk
0:02:56.6]} 32. e6 {[%clk 0:02:35.4]} 32... fxe6 {[%clk 0:02:51.1]} 33. Qe5+
{[%clk 0:02:31.6]} 33... Kh7 {[%clk 0:02:48.8]} 34. Rf6 {[%clk 0:02:22.2]} 34...
Rxf6 {[%clk 0:02:46.8]} 35. Qxf6 {[%clk 0:02:20.5]} 35... Qc1+ {[%clk
0:02:45.1]} 36. Nf1 {[%clk 0:02:17.4]} 36... Qxc3 {[%clk 0:02:39.4]} 37. Qf7+
{[%clk 0:02:15.2]} 37... Kh6 {[%clk 0:02:36.2]} 38. Qf4+ {[%clk 0:02:13.2]}
38... Kg7 {[%clk 0:02:33.9]} 39. Qe5+ {[%clk 0:02:12.1]} 39... Kf7 {[%clk
0:02:31.1]} 40. Qc7+ {[%clk 0:02:08.8]} 40... Ke8 {[%clk 0:02:26]} 41. Qe5
{[%clk 0:02:03.1]} 41... Qc4 {[%clk 0:02:18]} 42. Ne3 {[%clk 0:01:53.6]} 42...
Qc1+ {[%clk 0:02:11.2]} 43. Kh2 {[%clk 0:01:50.2]} 43... Kd7 {[%clk 0:02:08.3]}
44. Qg7+ {[%clk 0:01:45.6]} 44... Kd6 {[%clk 0:02:06.7]} 45. Qe5+ {[%clk
0:01:43.8]} 45... Kd7 {[%clk 0:02:05.5]} 46. Qg7+ {[%clk 0:01:42.4]} 46... Kc8
{[%clk 0:02:00]} 47. Qg8+ {[%clk 0:01:37.5]} 47... Kb7 {[%clk 0:01:59]} 48. Qxe6
{[%clk 0:01:36]} 48... Qd2 {[%clk 0:01:49]} 49. Nc4 {[%clk 0:01:32.7]} 49...
Qxd4 {[%clk 0:01:34.6]} 50. Nd6+ {[%clk 0:01:15.2]} 50... Kb6 {[%clk 0:01:33]}
51. Qb3+ {[%clk 0:01:12.4]} 51... Kc7 {[%clk 0:01:22.9]} 52. Nc4 {[%clk
0:01:06.8]} 52... Qf4+ {[%clk 0:01:12.1]} 53. Kg1 {[%clk 0:01:03.6]} 53... Kd7
{[%clk 0:00:49.9]} 54. Qb7+ {[%clk 0:00:58.5]} 54... Ke6 {[%clk 0:00:48.3]} 55.
Qxc6+ {[%clk 0:00:57.1]} 55... Ke7 {[%clk 0:00:46.6]} 56. Qb7+ {[%clk
0:00:49.3]} 56... Ke6 {[%clk 0:00:43.3]} 57. Qc6+ {[%clk 0:00:45.9]} 57... Kf7
{[%clk 0:00:41.5]} 58. Nd6+ {[%clk 0:00:42.3]} 58... Ke6 {[%clk 0:00:36.1]} 59.
Ne4+ {[%clk 0:00:37.2]} 59... Ke5 {[%clk 0:00:32.3]} 60. Qxa8 {[%clk 0:00:33.8]}
60... Qxe4 {[%clk 0:00:31.1]} 61. Qe8+ {[%clk 0:00:30.6]} 61... Kd5 {[%clk
0:00:29.5]} 62. Qa8+ {[%clk 0:00:28.4]} 62... Kd4 {[%clk 0:00:28.5]} 63. Qa4+
{[%clk 0:00:26.4]} 63... Ke3 {[%clk 0:00:25.9]} 64. Qxa3+ {[%clk 0:00:24.8]}
64... Kf4 {[%clk 0:00:24.8]} 65. Qf3+ {[%clk 0:00:22]} 65... Qxf3 {[%clk
0:00:22.7]} 66. gxf3 {[%clk 0:00:21.2]} 66... Kxf3 {[%clk 0:00:21.5]} 67. a4
{[%clk 0:00:20.4]} 67... Ke4 {[%clk 0:00:20.6]} 68. a5 {[%clk 0:00:19.4]} 68...
Kd5 {[%clk 0:00:19.9]} 69. Kf2 {[%clk 0:00:17.4]} 69... Kc6 {[%clk 0:00:19.6]}
70. Kg3 {[%clk 0:00:16.6]} 70... Kb5 {[%clk 0:00:19.2]} 71. Kf4 {[%clk
0:00:15.8]} 71... Kxa5 {[%clk 0:00:17.6]} 72. Kg5 {[%clk 0:00:14.9]} 72... Kb5
{[%clk 0:00:15.4]} 73. Kxg6 {[%clk 0:00:14]} 73... Kc5 {[%clk 0:00:14.2]} 74.
Kxh5 {[%clk 0:00:13.2]} 74... Kd5 {[%clk 0:00:13.9]} 75. Kg6 {[%clk 0:00:12.4]}
75... Ke5 {[%clk 0:00:12.4]} 76. h4 {[%clk 0:00:11.6]} 76... Ke6 {[%clk
0:00:12]} 77. h5 {[%clk 0:00:10.5]} 77... Ke7 {[%clk 0:00:11.6]} 78. Kg7 {[%clk
0:00:09.8]} 78... Ke6 {[%clk 0:00:10.7]} 79. h6 {[%clk 0:00:09.2]} 79... Kf5
{[%clk 0:00:10.4]} 80. h7 {[%clk 0:00:08.6]} 80... Kg5 {[%clk 0:00:09.9]} 81.
h8=Q {[%clk 0:00:07.4]} 81... Kf4 {[%clk 0:00:09.4]} 82. Qh6+ {[%clk 0:00:06.5]}
82... Ke4 {[%clk 0:00:09]} 83. Kf6 {[%clk 0:00:05.5]} 83... Kd3 {[%clk
0:00:08.3]} 84. Qf4 {[%clk 0:00:04.3]} 84... Kc3 {[%clk 0:00:07.1]} 85. Ke5
{[%clk 0:00:03.4]} 85... Kc2 {[%clk 0:00:06.5]} 86. Qe3 {[%clk 0:00:02.6]} 86...
Kb2 {[%clk 0:00:05]} 87. Kd4 {[%clk 0:00:02]} 87... Kb1 {[%clk 0:00:04.3]} 88.
Qc3 {[%clk 0:00:00.9]} 88... Ka2 {[%clk 0:00:03.5]} 89. Qb4 {[%clk 0:00:00.3]}
89... Ka1 {[%clk 0:00:02.3]} 1/2-1/2

[Event "Live Chess"]
[Site "Chess.com"]
[Date "2023.05.21"]
[Round "-"]
[White "Duke_of_Bebington"]
[Black "bedsdrout"]
[Result "0-1"]
[WhiteElo "1549"]
[BlackElo "1216"]
[TimeControl "300"]
[EndTime "6:27:39 PDT"]
[Termination "bedsdrout won by resignation"]

1. e4 {[%clk 0:04:58.3]} 1... e5 {[%clk 0:04:57.4]} 2. Nf3 {[%clk 0:04:57.1]}
2... Nc6 {[%clk 0:04:55.8]} 3. Bc4 {[%clk 0:04:56.7]} 3... Nf6 {[%clk
0:04:53.3]} 4. d3 {[%clk 0:04:55.2]} 4... Na5 {[%clk 0:04:51.1]} 5. Na3 {[%clk
0:04:51.6]} 5... Bxa3 {[%clk 0:04:48.7]} 6. bxa3 {[%clk 0:04:50.3]} 6... Nxc4
{[%clk 0:04:46.8]} 7. dxc4 {[%clk 0:04:50.2]} 7... O-O {[%clk 0:04:43.6]} 8. Bb2
{[%clk 0:04:49.7]} 8... d6 {[%clk 0:04:41.7]} 9. c5 {[%clk 0:04:49.1]} 9... Nxe4
{[%clk 0:04:39.9]} 10. cxd6 {[%clk 0:04:47.3]} 10... cxd6 {[%clk 0:04:38.4]} 11.
O-O {[%clk 0:04:45.9]} 11... Be6 {[%clk 0:04:35.8]} 12. Re1 {[%clk 0:04:45]}
12... f5 {[%clk 0:04:33.5]} 13. Qe2 {[%clk 0:04:27.6]} 13... Rc8 {[%clk
0:04:14.8]} 14. Rac1 {[%clk 0:04:18]} 14... Bc4 {[%clk 0:03:50]} 15. Qd1 {[%clk
0:04:12]} 15... Qb6 {[%clk 0:03:46.5]} 16. Re2 {[%clk 0:03:39.4]} 16... Bxe2
{[%clk 0:03:25.7]} 17. Qxe2 {[%clk 0:03:37.8]} 17... Qxb2 {[%clk 0:03:23]} 0-1

[Event "Live Chess"]
[Site "Chess.com"]
[Date "2023.05.21"]
[Round "-"]
[White "KeithArkell"]
[Black "SupremeTactician"]
[Result "1-0"]
[WhiteElo "2485"]
[BlackElo "2229"]
[TimeControl "300"]
[EndTime "6:27:49 PDT"]
[Termination "KeithArkell won by resignation"]

1. d4 {[%clk 0:04:56.4]} 1... Nf6 {[%clk 0:04:47.1]} 2. Nf3 {[%clk 0:04:53.3]}
2... e6 {[%clk 0:04:47]} 3. c4 {[%clk 0:04:52.3]} 3... b6 {[%clk 0:04:44.1]} 4.
g3 {[%clk 0:04:51.2]} 4... Bb7 {[%clk 0:04:43.2]} 5. Bg2 {[%clk 0:04:50.4]} 5...
Be7 {[%clk 0:04:42.5]} 6. O-O {[%clk 0:04:49.6]} 6... O-O {[%clk 0:04:41.8]} 7.
Nh4 {[%clk 0:04:48.8]} 7... Bxg2 {[%clk 0:04:26.2]} 8. Nxg2 {[%clk 0:04:47.8]}
8... c6 {[%clk 0:04:26]} 9. Nc3 {[%clk 0:04:37.1]} 9... d5 {[%clk 0:04:23.2]}
10. cxd5 {[%clk 0:04:36.3]} 10... exd5 {[%clk 0:04:21.1]} 11. Bg5 {[%clk
0:04:35]} 11... h6 {[%clk 0:04:18.4]} 12. Bxf6 {[%clk 0:04:34.1]} 12... Bxf6
{[%clk 0:04:17.8]} 13. b4 {[%clk 0:04:33.4]} 13... Nd7 {[%clk 0:04:12.6]} 14. b5
{[%clk 0:04:27.1]} 14... Qc7 {[%clk 0:03:56.7]} 15. Qd3 {[%clk 0:04:20.9]} 15...
Qd6 {[%clk 0:03:52.8]} 16. Rac1 {[%clk 0:04:17.8]} 16... Rac8 {[%clk 0:03:49.1]}
17. bxc6 {[%clk 0:04:16]} 17... Rxc6 {[%clk 0:03:47.6]} 18. Nb5 {[%clk
0:04:14.9]} 18... Qe6 {[%clk 0:03:36.2]} 19. Nf4 {[%clk 0:04:12.9]} 1-0

[Event "Live Chess"]
[Site "Chess.com"]
[Date "2023.05.21"]
[Round "-"]
[White "friarnator"]
[Black "LiamBellwood"]
[Result "1-0"]
[WhiteElo "2032"]
[BlackElo "1908"]
[TimeControl "300"]
[EndTime "6:27:50 PDT"]
[Termination "friarnator won by resignation"]

1. d4 {[%clk 0:04:58.2]} 1... e6 {[%clk 0:04:59.9]} 2. Nc3 {[%clk 0:04:54.7]}
2... f5 {[%clk 0:04:59.4]} 3. h4 {[%clk 0:04:52.8]} 3... Bb4 {[%clk 0:04:58.3]}
4. h5 {[%clk 0:04:51.1]} 4... Nf6 {[%clk 0:04:55.3]} 5. h6 {[%clk 0:04:49.1]}
5... g6 {[%clk 0:04:54.6]} 6. Bg5 {[%clk 0:04:47.9]} 6... O-O {[%clk 0:04:48.2]}
7. a3 {[%clk 0:04:45.6]} 7... Bxc3+ {[%clk 0:04:47.2]} 8. bxc3 {[%clk
0:04:45.5]} 8... d6 {[%clk 0:04:45.9]} 9. e3 {[%clk 0:04:40.3]} 9... Qe8 {[%clk
0:04:45.3]} 10. Bc4 {[%clk 0:04:38.3]} 10... Qc6 {[%clk 0:04:34.3]} 11. Bxf6
{[%clk 0:04:31]} 11... Qxg2 {[%clk 0:04:10.6]} 12. Qf3 {[%clk 0:03:35.5]} 12...
Qxf3 {[%clk 0:04:06.8]} 13. Nxf3 {[%clk 0:03:35.4]} 13... Rxf6 {[%clk
0:04:06.6]} 14. Ng5 {[%clk 0:03:34.7]} 14... d5 {[%clk 0:03:55.9]} 15. Bd3
{[%clk 0:03:29.8]} 15... c5 {[%clk 0:03:53.1]} 16. c4 {[%clk 0:03:20.5]} 16...
cxd4 {[%clk 0:03:47.3]} 17. exd4 {[%clk 0:03:16.7]} 17... Nc6 {[%clk 0:03:43.5]}
18. c3 {[%clk 0:03:14.9]} 18... Nd8 {[%clk 0:03:37.9]} 19. f4 {[%clk 0:03:12]}
19... Nf7 {[%clk 0:03:36]} 20. Nxf7 {[%clk 0:03:02.8]} 20... Kxf7 {[%clk
0:03:35.9]} 21. Kd2 {[%clk 0:02:57.7]} 21... Bd7 {[%clk 0:03:27.5]} 22. cxd5
{[%clk 0:02:53.9]} 22... exd5 {[%clk 0:03:27.4]} 23. Rab1 {[%clk 0:02:48.6]}
23... Bc6 {[%clk 0:03:26.7]} 24. Bb5 {[%clk 0:02:47.8]} 24... Bxb5 {[%clk
0:03:23]} 25. Rxb5 {[%clk 0:02:47.7]} 25... b6 {[%clk 0:02:43.7]} 26. Rxd5
{[%clk 0:02:45]} 26... Re6 {[%clk 0:02:43]} 27. Rd7+ {[%clk 0:02:25]} 27... Re7
{[%clk 0:02:41.5]} 28. Rxe7+ {[%clk 0:02:24.6]} 28... Kxe7 {[%clk 0:02:41.4]}
29. Re1+ {[%clk 0:02:23.3]} 29... Kd6 {[%clk 0:02:32.7]} 30. Kd3 {[%clk
0:02:22.6]} 30... b5 {[%clk 0:02:29.1]} 31. Re5 {[%clk 0:02:20.8]} 31... a6
{[%clk 0:02:27.3]} 32. d5 {[%clk 0:02:04.2]} 32... Rc8 {[%clk 0:01:57.1]} 33.
Re6+ {[%clk 0:02:01.2]} 33... Kxd5 {[%clk 0:01:51.4]} 34. Re7 {[%clk 0:01:50.9]}
34... Rh8 {[%clk 0:01:36.3]} 35. Ra7 {[%clk 0:01:50.1]} 35... Kc5 {[%clk
0:01:30.2]} 36. Rxa6 {[%clk 0:01:49.1]} 36... Rd8+ {[%clk 0:01:24.1]} 37. Kc2
{[%clk 0:01:46]} 37... Rd7 {[%clk 0:01:23.5]} 38. Ra8 {[%clk 0:01:42.4]} 38...
Re7 {[%clk 0:01:16.8]} 39. Rg8 {[%clk 0:01:35.7]} 39... Kd6 {[%clk 0:01:00.6]}
40. Kb3 {[%clk 0:01:23.6]} 40... Ke6 {[%clk 0:00:58.2]} 41. Kb4 {[%clk 0:01:21]}
41... Rb7 {[%clk 0:00:51.4]} 42. Re8+ {[%clk 0:01:15.1]} 42... Kd6 {[%clk
0:00:44.6]} 43. Rg8 {[%clk 0:01:10.2]} 43... Ke6 {[%clk 0:00:43.3]} 44. Re8+
{[%clk 0:01:09.7]} 44... Kd6 {[%clk 0:00:42.5]} 45. Re5 {[%clk 0:01:09.4]} 45...
Kc6 {[%clk 0:00:34.5]} 46. Rc5+ {[%clk 0:01:04.9]} 46... Kd6 {[%clk 0:00:28.8]}
47. Rxb5 {[%clk 0:01:03.8]} 47... Re7 {[%clk 0:00:16.5]} 48. a4 {[%clk
0:00:56.9]} 48... Re4+ {[%clk 0:00:14.3]} 49. Kb3 {[%clk 0:00:56.3]} 49... Rxf4
{[%clk 0:00:13.7]} 50. a5 {[%clk 0:00:55.9]} 50... Rf1 {[%clk 0:00:12.3]} 51.
Ka2 {[%clk 0:00:52.9]} 51... Rf2+ {[%clk 0:00:10.7]} 52. Rb2 {[%clk 0:00:51.8]}
52... f4 {[%clk 0:00:10.6]} 53. a6 {[%clk 0:00:50.6]} 1-0